fUST/lending_fUST_20251104
["ID","MTS","AMOUNT","RATE_DAILY","PERIOD"]
[393041263,1762241432601,-150.0,0.00018467,2]
[393041264,1762241432611,-243.0,0.00018467,2]
[393041265,1762241432620,-500.0,0.000185,2]
[393041266,1762241432630,-167.93945882,0.00018545,2]
[393041267,1762241432640,-1285.16024785,0.00018562,2]
[393041268,1762241432649,-151.0,0.00018635,2]
[393041269,1762241432659,-151.0,0.00018635,2]
[393041270,1762241432668,-151.0,0.00018635,2]
[393041271,1762241432678,-151.0,0.00018635,2]
[393041272,1762241432692,-151.0,0.00018635,2]
[393041273,1762241432701,-151.0,0.00018635,2]
[393041274,1762241432711,-151.0,0.00018635,2]
[393041275,1762241432721,-151.0,0.00018635,2]
[393041276,1762241432730,-151.0,0.00018635,2]
[393041277,1762241432739,-151.0,0.00018635,2]
[393041278,1762241432748,-151.0,0.00018635,2]
[393041279,1762241432757,-151.0,0.00018635,2]
[393041280,1762241432939,-151.0,0.00018635,2]
[393041281,1762241432949,-151.0,0.00018635,2]
[393041282,1762241432959,-151.0,0.00018635,2]
[393041283,1762241432969,-151.0,0.00018635,2]
[393041284,1762241432979,-151.0,0.00018635,2]
[393041285,1762241432988,-151.0,0.00018635,2]
[393041286,1762241432998,-151.0,0.00018635,2]
[393041287,1762241433007,-151.0,0.00018635,2]
[393041288,1762241433017,-300.0,0.00018641,2]
[393041289,1762241433028,-635.99680727,0.00018642,2]
[393041290,1762241433040,-300.0,0.00018642,2]
[393041291,1762241433050,-300.0,0.00018642,2]
[393041292,1762241433060,-300.0,0.00018642,2]
[393041293,1762241433070,-300.0,0.00018642,2]
[393041294,1762241433080,-1200.0,0.00018642,2]
[393041295,1762241433090,-500.0,0.00018642,2]
[393041296,1762241433099,-500.0,0.00018642,2]
[393041297,1762241433108,-1200.0,0.00018643,2]
[393041298,1762241433118,-50000.0,0.00018643,2]
[393041299,1762241433127,-999.03199009,0.00018647,2]
[393041300,1762241433137,-357.57,0.00018647,2]
[393041301,1762241433146,-500.0,0.00018647,2]
[393041302,1762241433155,-500.0,0.00018647,2]
[393041303,1762241433165,-500.0,0.00018654,2]
[393041304,1762241433175,-500.0,0.00018654,2]
[393041305,1762241433184,-500.0,0.00018654,2]
[393041306,1762241433193,-500.0,0.00018654,2]
[393041307,1762241433203,-500.0,0.00018654,2]
[393041308,1762241433212,-500.0,0.00018656,2]
[393041309,1762241433221,-379.42440938,0.00018656,2]
[393041310,1762241433230,-500.0,0.00018656,2]
[393041311,1762241433240,-649.2742283,0.00018656,2]
[393041312,1762241433249,-500.0,0.00018658,2]
[393041313,1762241433258,-540.00602318,0.00018659,2]
[393041314,1762241433267,-500.0,0.00018659,2]
[393041315,1762241433279,-500.0,0.00018659,2]
[393041316,1762241433288,-500.0,0.00018659,2]
[393041317,1762241433297,-500.0,0.00018659,2]
[393041318,1762241433307,-500.0,0.00018659,2]
[393041319,1762241433317,-500.0,0.00018659,2]
[393041320,1762241433326,-500.0,0.00018659,2]
[393041321,1762241433335,-500.0,0.00018659,2]
[393041322,1762241433344,-500.0,0.00018659,2]
[393041323,1762241433354,-500.0,0.00018659,2]
[393041324,1762241433363,-500.0,0.0001866,2]
[393041325,1762241433372,-500.0,0.0001866,2]
[393041326,1762241433382,-500.0,0.0001866,2]
[393041327,1762241433391,-327.5665754,0.00018661,2]
[393041328,1762241433400,-500.0,0.00018662,2]
[393041329,1762241433419,-500.0,0.00018662,2]
[393041330,1762241433430,-500.0,0.00018662,2]
[393041331,1762241433440,-500.0,0.00018662,2]
[393041332,1762241433450,-500.0,0.00018662,2]
[393041333,1762241433461,-500.0,0.00018662,2]
[393041334,1762241433471,-2634.5,0.00018662,2]
[393041335,1762241433480,-2634.5,0.00018662,2]
[393041336,1762241433491,-2634.5,0.00018662,2]
[393041337,1762241433500,-2634.5,0.00018662,2]
[393041338,1762241433509,-2634.5,0.00018662,2]
[393041339,1762241433520,-2634.5,0.00018662,2]
[393041340,1762241433532,-500.0,0.00018663,2]
[393041341,1762241433542,-500.0,0.00018663,2]
[393041342,1762241433551,-500.0,0.00018663,2]
[393041343,1762241433562,-2634.5,0.00018663,2]
[393041344,1762241433572,-2634.5,0.00018663,2]
[393041345,1762241433582,-2634.5,0.00018663,2]
[393041346,1762241433591,-500.0,0.00018664,2]
[393041347,1762241433601,-2634.5,0.00018664,2]
[393041348,1762241433611,-500.0,0.00018672,2]
[393041349,1762241433620,-2634.5,0.00018672,2]
[393041350,1762241433630,-500.0,0.00018672,2]
[393041351,1762241433639,-501.53895479,0.00018673,2]
[393041352,1762241433648,-500.0,0.00018673,2]
[393041353,1762241433658,-390.31638483,0.00018673,2]
[393041354,1762241433668,-500.0,0.00018673,2]
[393041355,1762241433677,-500.0,0.00018673,2]
[393041356,1762241433688,-500.0,0.00018673,2]
[393041357,1762241433700,-500.0,0.00018673,2]
[393041358,1762241433710,-500.0,0.00018673,2]
[393041359,1762241433719,-500.0,0.00018673,2]
[393041360,1762241433729,-503.04731762,0.00018673,2]
[393041361,1762241433739,-500.0,0.00018673,2]
[393041362,1762241433749,-281.14801477,0.00018673,2]
[393041363,1762241433758,-166.02676628,0.00018673,2]
[393041364,1762241433769,-500.0,0.00018673,2]
[393041365,1762241433780,-502.39938299,0.00018673,2]
[393041366,1762241433789,-502.47996889,0.00018673,2]
[393041367,1762241433799,-503.95430625,0.00018673,2]
[393041368,1762241433808,-500.0,0.00018673,2]
[393041369,1762241433818,-500.0,0.00018673,2]
[393041370,1762241433827,-367.52246347,0.00018673,2]
[393041371,1762241433837,-500.0,0.00018673,2]
[393041372,1762241433846,-500.0,0.00018673,2]
[393041373,1762241433856,-500.0,0.00018673,2]
[393041374,1762241433865,-500.0,0.00018673,2]
[393041375,1762241433875,-602.74739443,0.00018673,2]
[393041376,1762241433884,-500.0,0.00018673,2]
[393041377,1762241433894,-500.0,0.00018673,2]
[393041378,1762241433903,-500.0,0.00018673,2]
[393041379,1762241433913,-500.0,0.00018673,2]
[393041380,1762241433922,-500.0,0.00018673,2]
[393041381,1762241433932,-500.0,0.00018673,2]
[393041382,1762241433941,-500.0,0.00018673,2]
[393041383,1762241433951,-500.0,0.00018673,2]
[393041384,1762241433960,-424.30911472,0.00018673,2]
[393041385,1762241433970,-562.26380305,0.00018673,2]
[393041386,1762241433980,-500.0,0.00018673,2]
[393041387,1762241433990,-500.0,0.00018673,2]
[393041388,1762241434000,-500.0,0.00018673,2]
[393041389,1762241434010,-500.0,0.00018673,2]
[393041390,1762241434019,-502.73096405,0.00018673,2]
[393041391,1762241434029,-500.0,0.00018673,2]
[393041392,1762241434039,-500.0,0.00018673,2]
[393041393,1762241434048,-158.11279063,0.00018673,2]
[393041394,1762241434057,-500.0,0.00018673,2]
[393041395,1762241434066,-500.0,0.00018673,2]
[393041396,1762241434075,-576.70275738,0.00018673,2]
[393041397,1762241434084,-500.0,0.00018673,2]
[393041398,1762241434093,-500.0,0.00018673,2]
[393041399,1762241434102,-511.81599857,0.00018673,2]
[393041400,1762241434111,-170.26214199,0.00018673,2]
[393041401,1762241434120,-500.0,0.00018673,2]
[393041402,1762241434129,-500.0,0.00018673,2]
[393041403,1762241434138,-500.0,0.00018673,2]
[393041404,1762241434147,-357.57,0.00018921,2]
[393041405,1762241434156,-100000.0,0.0001899,2]
[393041406,1762241434166,-7074.83812762,0.00019,2]
[393041407,1762241434175,-25257.82278571,0.00019,2]
[393041408,1762241434184,-357.57,0.00019195,2]
[393041409,1762241434193,-500.0,0.00019212,2]
[393041410,1762241434202,-9107.11456111,0.00019213,2]
[393041411,1762241434211,-500.0,0.0001922,2]
[393041412,1762241434220,-1002.43931167,0.00019221,2]
[393041413,1762241434229,-504.59492432,0.00019221,2]
[393041414,1762241434238,-1000.0,0.00019221,2]
[393041415,1762241434247,-1000.0,0.00019221,2]
[393041416,1762241434256,-922.44000345,0.00019221,2]
[393041417,1762241434266,-541.99843397,0.00019221,2]
[393041418,1762241434275,-502.10032783,0.00019221,2]
[393041419,1762241434285,-1004.97042247,0.00019221,2]
[393041420,1762241434294,-502.33342039,0.00019221,2]
[393041421,1762241434303,-1000.0,0.00019221,2]
[393041422,1762241434316,-1000.0,0.00019221,2]
[393041423,1762241434325,-504.23985669,0.00019221,2]
[393041424,1762241434334,-1000.0,0.00019221,2]
[393041425,1762241434344,-1000.0,0.00019221,2]
[393041426,1762241434353,-502.22635647,0.00019221,2]
[393041427,1762241434362,-1000.0,0.00019221,2]
[393041428,1762241434371,-1000.0,0.00019221,2]
[393041429,1762241434380,-1000.0,0.00019221,2]
[393041430,1762241434390,-286.96581137,0.00019221,2]
[393041431,1762241434399,-1000.0,0.00019221,2]
[393041432,1762241434408,-1000.0,0.00019221,2]
[393041433,1762241434418,-728.11255148,0.00019221,2]
[393041434,1762241434427,-1000.0,0.00019221,2]
[393041435,1762241434436,-380.04005811,0.00019221,2]
[393041436,1762241434446,-500.0,0.00019221,2]
[393041437,1762241434455,-1000.0,0.00019221,2]
[393041438,1762241434464,-500.0,0.00019221,2]
[393041439,1762241434473,-1000.0,0.00019221,2]
[393041440,1762241434482,-1000.0,0.00019221,2]
[393041441,1762241434492,-1000.0,0.00019221,2]
[393041442,1762241434501,-796.78984952,0.00019221,2]
[393041443,1762241434510,-1000.0,0.00019221,2]
[393041444,1762241434519,-1000.0,0.00019221,2]
[393041445,1762241434529,-1000.0,0.00019221,2]
[393041446,1762241434538,-1000.0,0.00019221,2]
[393041447,1762241434548,-606.91258562,0.00019272,2]
[393041448,1762241434558,-500.0,0.00019273,2]
[393041449,1762241434568,-268.93335149,0.00019273,2]
[393041450,1762241434578,-500.0,0.00019273,2]
[393041451,1762241434587,-500.0,0.00019273,2]
[393041452,1762241434597,-424.55965439,0.00019273,2]
[393041453,1762241434606,-500.0,0.00019273,2]
[393041454,1762241434617,-500.0,0.00019273,2]
[393041455,1762241434627,-500.0,0.00019273,2]
[393041456,1762241434636,-500.0,0.00019273,2]
[393041457,1762241434646,-500.0,0.00019273,2]
[393041458,1762241434655,-500.0,0.00019273,2]
[393041459,1762241434665,-500.0,0.00019273,2]
[393041460,1762241434675,-631.6603458,0.00019273,2]
[393041461,1762241434687,-500.0,0.00019273,2]
[393041462,1762241434698,-500.0,0.00019273,2]
[393041463,1762241434707,-500.0,0.00019273,2]
[393041464,1762241434717,-500.0,0.00019273,2]
[393041465,1762241434727,-500.0,0.00019273,2]
[393041466,1762241434736,-500.0,0.00019273,2]
[393041467,1762241434746,-357.57,0.00019469,2]
[393041468,1762241434755,-1136.77679888,0.00019596,2]
[393041469,1762241434766,-10580.48437241,0.00019668,2]
[393041470,1762241434776,-357.58304672,0.00019743,2]
[393041471,1762241434790,-489.32863657,0.00019768,2]
[393041472,1762241434800,-1515.61085044,0.00019768,2]
[393041473,1762241434809,-1500.0,0.00019768,2]
[393041474,1762241434818,-1500.0,0.00019768,2]
[393041475,1762241434827,-849.51285407,0.00019768,2]
[393041476,1762241434836,-1500.0,0.00019768,2]
[393041477,1762241434845,-1500.0,0.00019768,2]
[393041478,1762241434854,-1500.0,0.00019768,2]
[393041479,1762241434864,-1500.0,0.00019768,2]
[393041480,1762241434874,-511.63545977,0.00019768,2]
[393041481,1762241434883,-1500.0,0.00019768,2]
[393041482,1762241434894,-1500.0,0.00019768,2]
[393041483,1762241434903,-500.0,0.00019768,2]
[393041484,1762241434913,-1500.0,0.00019768,2]
[393041485,1762241434923,-1500.0,0.00019768,2]
[393041486,1762241434932,-1500.0,0.00019768,2]
[393041487,1762241434942,-1500.0,0.00019768,2]
[393041488,1762241434951,-1500.0,0.00019768,2]
[393041489,1762241434961,-1627.28035488,0.00019768,2]
[393041490,1762241434971,-1000.0,0.00019821,2]
[393041491,1762241434980,-1000.0,0.00019821,2]
[393041492,1762241434990,-1000.0,0.00019821,2]
[393041493,1762241434999,-500.59827465,0.00019821,2]
[393041494,1762241435010,-1000.0,0.00019821,2]
[393041495,1762241435020,-1000.0,0.00019821,2]
[393041496,1762241435031,-1000.0,0.00019821,2]
[393041497,1762241435041,-1000.0,0.00019821,2]
[393041498,1762241435050,-1000.0,0.00019821,2]
[393041499,1762241435060,-1000.0,0.00019821,2]
[393041500,1762241435069,-1000.0,0.00019821,2]
[393041501,1762241435079,-1000.0,0.00019821,2]
[393041502,1762241435089,-1000.0,0.00019821,2]
[393041503,1762241435098,-1000.0,0.00019821,2]
[393041504,1762241435107,-1000.0,0.00019821,2]
[393041505,1762241435117,-160.0,0.000199,2]
[393041506,1762241435126,-500.0,0.00019925,2]
[393041507,1762241435136,-2634.5,0.00019925,2]
[393041508,1762241435145,-500.0,0.00019926,2]
[393041509,1762241435154,-500.0,0.00019926,2]
[393041510,1762241435164,-578.84934395,0.00019926,2]
[393041511,1762241435173,-500.0,0.00019926,2]
[393041512,1762241435183,-185.63865519,0.00019926,2]
[393041513,1762241435192,-500.0,0.00019926,2]
[393041514,1762241435201,-500.0,0.00019926,2]
[393041515,1762241435211,-500.0,0.00019926,2]
[393041516,1762241435220,-500.0,0.00019926,2]
[393041517,1762241435229,-500.0,0.00019926,2]
[393041518,1762241435239,-479.1554818,0.00019928,2]
[393041519,1762241435248,-500.0,0.00019973,2]
[393041520,1762241435258,-2327.79742177,0.0002,2]
[393041521,1762241435267,-1375.89385562,0.0002,20]
[393041522,1762241435277,-368.62281221,0.0002,2]
[393041523,1762241435288,-23000.0,0.0002,2]
[393041524,1762241435297,-201.02103545,0.0002,2]
[393041525,1762241435306,-4079.20274989,0.0002,2]
[393041526,1762241435315,-448.26,0.00020005,3]
[393041527,1762241435325,-315.82086864,0.00020121,2]
[393041528,1762241435336,-2000.0,0.00020316,2]
[393041529,1762241435345,-766.71664522,0.00020316,2]
[393041530,1762241435354,-2000.0,0.00020316,2]
[393041531,1762241435364,-2000.0,0.00020316,2]
[393041532,1762241435373,-2000.0,0.00020316,2]
[393041533,1762241435382,-2000.0,0.00020316,2]
[393041534,1762241435392,-2000.0,0.00020316,2]
[393041535,1762241435401,-1007.42246392,0.00020316,2]
[393041536,1762241435411,-1510.42269891,0.00020316,2]
[393041537,1762241435420,-2000.0,0.00020316,2]
[393041538,1762241435430,-2000.0,0.00020316,2]
[393041539,1762241435440,-493.03581754,0.00020316,2]
[393041540,1762241435449,-2000.0,0.00020316,2]
[393041541,1762241435458,-420.0,0.00020326,2]
[393041542,1762241435468,-420.0,0.00020327,2]
[393041543,1762241435477,-420.0,0.00020327,2]
[393041544,1762241435487,-420.0,0.00020327,2]
[393041545,1762241435496,-420.0,0.00020327,2]
[393041546,1762241435505,-1680.0,0.00020328,2]
[393041547,1762241435515,-1500.0,0.00020368,2]
[393041548,1762241435524,-1500.0,0.00020368,2]
[393041549,1762241435535,-503.81473157,0.00020368,2]
[393041550,1762241435544,-1500.0,0.00020368,2]
[393041551,1762241435554,-1172.66270254,0.00020368,2]
[393041552,1762241435563,-1500.0,0.00020368,2]
[393041553,1762241435573,-1502.6930751,0.00020368,2]
[393041554,1762241435583,-1500.0,0.00020368,2]
[393041555,1762241435592,-520.67719653,0.00020368,2]
[393041556,1762241435602,-1500.0,0.00020368,2]
[393041557,1762241435612,-968.13019015,0.00020368,2]
[393041558,1762241435622,-501.14000184,0.00020368,2]
[393041559,1762241435632,-943.45006284,0.00020368,2]
[393041560,1762241435641,-1500.0,0.00020368,2]
[393041561,1762241435650,-500.0,0.00020373,2]
[393041562,1762241435660,-500.0,0.00020373,2]
[393041563,1762241435669,-501.50475064,0.00020373,2]
[393041564,1762241435678,-500.0,0.00020373,2]
[393041565,1762241435692,-500.66715373,0.00020373,2]
[393041566,1762241435702,-500.0,0.00020373,2]
[393041567,1762241435711,-500.0,0.00020373,2]
[393041568,1762241435720,-500.0,0.00020373,2]
[393041569,1762241435731,-500.0,0.00020373,2]
[393041570,1762241435740,-159.63340058,0.00020373,2]
[393041571,1762241435750,-257.97158409,0.00020373,2]
[393041572,1762241435760,-500.0,0.00020373,2]
[393041573,1762241435770,-500.0,0.00020373,2]
[393041574,1762241435781,-500.0,0.00020373,2]
[393041575,1762241435790,-500.0,0.00020373,2]
[393041576,1762241435799,-500.0,0.00020373,2]
[393041577,1762241435809,-500.0,0.00020373,2]
[393041578,1762241435818,-500.0,0.00020373,2]
[393041579,1762241435827,-500.0,0.00020373,2]
[393041580,1762241435837,-500.0,0.00020373,2]
[393041581,1762241435846,-500.0,0.00020373,2]
[393041582,1762241435855,-500.0,0.00020373,2]
[393041583,1762241435864,-500.0,0.00020373,2]
[393041584,1762241435873,-500.0,0.00020373,2]
[393041585,1762241435883,-500.0,0.00020373,2]
[393041586,1762241435893,-500.0,0.00020373,2]
[393041587,1762241435902,-474.01946491,0.00020388,2]
[393041588,1762241435911,-1680.0,0.00020426,2]
[393041589,1762241435921,-260.0,0.00020448,2]
[393041590,1762241435930,-177.0,0.00020467,2]
[393041591,1762241435939,-500.58635459,0.00020521,2]
[393041592,1762241435948,-381.58474785,0.00020558,2]
[393041593,1762241435958,-500.0,0.00020612,2]
[393041594,1762241435967,-2634.5,0.00020612,2]
[393041595,1762241435978,-2500.0,0.00020864,2]
[393041596,1762241435987,-660.29173698,0.00020864,2]
[393041597,1762241435997,-2500.0,0.00020864,2]
[393041598,1762241436008,-2500.0,0.00020864,2]
[393041599,1762241436018,-2500.0,0.00020864,2]
[393041600,1762241436028,-2500.0,0.00020864,2]
[393041601,1762241436038,-1124.57248092,0.00020864,2]
[393041602,1762241436048,-2500.0,0.00020864,2]
[393041603,1762241436057,-1685.74439206,0.00020864,2]
[393041604,1762241436067,-2000.0,0.00020916,2]
[393041605,1762241436076,-1502.07627924,0.00020916,2]
[393041606,1762241436086,-501.76210959,0.00020916,2]
[393041607,1762241436095,-502.23413884,0.00020916,2]
[393041608,1762241436107,-1632.48093478,0.00020916,2]
[393041609,1762241436117,-2000.0,0.00020916,2]
[393041610,1762241436127,-1501.78320274,0.00020916,2]
[393041611,1762241436136,-501.32127545,0.00020921,2]
[393041612,1762241436146,-602.19960854,0.00020921,2]
[393041613,1762241436155,-1000.0,0.00020921,2]
[393041614,1762241436164,-500.78145443,0.00020921,2]
[393041615,1762241436176,-316.95976843,0.00020921,2]
[393041616,1762241436186,-1000.0,0.00020921,2]
[393041617,1762241436196,-1000.0,0.00020921,2]
[393041618,1762241436205,-283.2395694,0.00020921,2]
[393041619,1762241436214,-1000.0,0.00020921,2]
[393041620,1762241436224,-1000.0,0.00020921,2]
[393041621,1762241436233,-1000.0,0.00020921,2]
[393041622,1762241436369,-1000.0,0.00020921,2]
[393041623,1762241436392,-1000.0,0.00020921,2]
[393041624,1762241436402,-1000.0,0.00020921,2]
[393041625,1762241436411,-1000.0,0.00020921,2]
[393041626,1762241436420,-1000.0,0.00020921,2]
[393041627,1762241436429,-1000.0,0.00020921,2]
[393041628,1762241436438,-727.53494812,0.00020921,2]
[393041629,1762241436448,-1000.0,0.00020921,2]
[393041630,1762241436457,-831.13417876,0.00020921,2]
[393041631,1762241436466,-1000.0,0.00020921,2]
[393041632,1762241436476,-360.0,0.00020996,2]
[393041633,1762241436485,-150.0,0.0002141,2]
[393041634,1762241436495,-2489.65853521,0.00021412,2]
[393041635,1762241436504,-3000.0,0.00021412,2]
[393041636,1762241436514,-3000.0,0.00021412,2]
[393041637,1762241436523,-3000.0,0.00021412,2]
[393041638,1762241436532,-3000.0,0.00021412,2]
[393041639,1762241436542,-3000.0,0.00021412,2]
[393041640,1762241436551,-2500.0,0.00021464,2]
[393041641,1762241436560,-1500.0,0.00021468,2]
[393041642,1762241436569,-1500.0,0.00021468,2]
[393041643,1762241436579,-1500.0,0.00021468,2]
[393041644,1762241436588,-1239.49520019,0.00021468,2]
[393041645,1762241436597,-1500.0,0.00021468,2]
[393041646,1762241436606,-1500.0,0.00021468,2]
[393041647,1762241436615,-1502.30379968,0.00021468,2]
[393041648,1762241436625,-1500.0,0.00021468,2]
[393041649,1762241436634,-1500.0,0.00021468,2]
[393041650,1762241436643,-1500.0,0.00021468,2]
[393041651,1762241436652,-1500.0,0.00021468,2]
[393041652,1762241436661,-1500.0,0.00021468,2]
[393041653,1762241436670,-941.00717966,0.00021468,2]
[393041654,1762241436679,-1500.0,0.00021468,2]
[393041655,1762241436692,-12748.51424398,0.000215,2]
[393041656,1762241436701,-460.0,0.00021544,2]
[393041657,1762241436711,-206.04539043,0.00021598,2]
[393041658,1762241436720,-500.0,0.00021917,2]
[393041659,1762241436731,-500.0,0.00021917,2]
[393041660,1762241436740,-500.0,0.00021917,2]
[393041661,1762241436749,-500.0,0.00021917,2]
[393041662,1762241436759,-500.0,0.00021917,2]
[393041663,1762241436773,-500.0,0.00021917,2]
[393041664,1762241436784,-500.0,0.00021917,2]
[393041665,1762241436793,-500.0,0.00021917,2]
[393041666,1762241436802,-150.0,0.00021918,2]
[393041667,1762241436812,-3500.0,0.0002196,2]
[393041668,1762241436821,-3500.0,0.0002196,2]
[393041669,1762241436830,-3570.26920145,0.0002196,2]
[393041670,1762241436839,-3500.0,0.0002196,2]
[393041671,1762241436848,-2804.65928405,0.0002196,2]
[393041672,1762241436857,-162.31511921,0.00021973,2]
[393041673,1762241436866,-509.86,0.00022,7]
[393041674,1762241436875,-897.83,0.00022,14]
[393041675,1762241436885,-26354.81,0.00022,7]
[393041676,1762241436894,-60155.75937446,0.00022,2]
[393041677,1762241436904,-9566.50003121,0.00022,2]
[393041678,1762241436913,-509.49314491,0.00022012,2]
[393041679,1762241436923,-502.09671694,0.00022016,2]
[393041680,1762241436932,-298.10984526,0.00022016,2]
[393041681,1762241436942,-501.45663763,0.00022016,2]
[393041682,1762241436951,-2002.0251005,0.00022016,2]
[393041683,1762241436960,-2065.20904954,0.00022016,2]
[393041684,1762241436970,-2000.0,0.00022016,2]
[393041685,1762241436979,-664.08333863,0.00022016,2]
[393041686,1762241436989,-2000.0,0.00022016,2]
[393041687,1762241436999,-2000.0,0.00022016,2]
[393041688,1762241437008,-2001.49992643,0.00022016,2]
[393041689,1762241437017,-1501.85332794,0.00022016,2]
[393041690,1762241437027,-560.0,0.00022092,2]
[393041691,1762241437040,-500.0,0.00022099,2]
[393041692,1762241437049,-2634.5,0.00022099,2]
[393041693,1762241437059,-500.0,0.00022132,2]
[393041694,1762241437068,-201.0,0.00022164,2]
[393041695,1762241437077,-587.0,0.00022165,2]
[393041696,1762241437086,-587.0,0.00022165,2]
[393041697,1762241437096,-587.0,0.00022165,2]
[393041698,1762241437105,-587.0,0.00022165,2]
[393041699,1762241437115,-2351.0,0.00022166,2]
[393041700,1762241437124,-2351.0,0.00022381,2]
[393041701,1762241437134,-300.0,0.00022466,2]
[393041702,1762241437143,-204.0,0.00022467,2]
[393041703,1762241437152,-1920.41034617,0.00022508,2]
[393041704,1762241437161,-4000.0,0.00022508,2]
[393041705,1762241437170,-2500.0,0.00022564,2]
[393041706,1762241437179,-500.0,0.00022564,2]
[393041707,1762241437189,-660.0,0.0002264,2]
[393041708,1762241437198,-1000.0,0.0002268,2]
[393041709,1762241437207,-450.63343419,0.00023014,2]
[393041710,1762241437217,-4500.0,0.00023056,2]
[393041711,1762241437226,-3000.0,0.00023112,2]
[393041712,1762241437235,-500.0,0.00023188,2]
[393041713,1762241437244,-1584.52115602,0.00023227,2]
[393041714,1762241437253,-150.0,0.00023356,2]
[393041715,1762241437263,-531.96290995,0.00023604,2]
[393041716,1762241437273,-3500.0,0.0002366,2]
[393041717,1762241437284,-1889.16339491,0.000237,30]
[393041718,1762241437293,-2000.0,0.00023906,7]
[393041719,1762241437303,-1722.2438938,0.00024,2]
[393041720,1762241437312,-164.4073595,0.00024,2]
[393041721,1762241437320,-461.94600872,0.00024,2]
[393041722,1762241437330,-94917.47908326,0.00024142,2]
[393041723,1762241437339,-243.0,0.00024168,2]
[393041724,1762241437348,-823.0,0.00024168,2]
[393041725,1762241437358,-823.0,0.00024168,2]
[393041726,1762241437368,-823.0,0.00024168,2]
[393041727,1762241437378,-3292.0,0.0002417,2]
[393041728,1762241437387,-4000.0,0.00024208,2]
[393041729,1762241437397,-151.0,0.000243,7]
[393041730,1762241437406,-500.0,0.00024462,2]
[393041731,1762241437415,-2634.5,0.00024462,2]
[393041732,1762241437424,-151.0,0.00024462,7]
[393041733,1762241437434,-151.0,0.00024462,7]
[393041734,1762241437443,-156.283044,0.00024462,7]
[393041735,1762241437452,-169.703807,0.00024462,7]
[393041736,1762241437462,-151.0,0.00024462,7]
[393041737,1762241437471,-151.0,0.00024462,7]
[393041738,1762241437481,-151.0,0.00024462,7]
[393041739,1762241437490,-151.0,0.00024462,7]
[393041740,1762241437500,-231.0,0.00024467,2]
[393041741,1762241437510,-3292.0,0.00024524,2]
[393041742,1762241437519,-18433.9624618,0.0002465,2]
[393041743,1762241437528,-150.0,0.00024658,2]
[393041744,1762241437539,-26354.81,0.000247,7]
[393041745,1762241437548,-3628.70588817,0.00024774,2]
[393041747,1762241437558,-178.19305235,0.000248,2]
[393041749,1762241437567,-14598.5715434,0.000248,2]
[393041751,1762241437577,-2576.21850765,0.0002489,2]
[393041752,1762241437586,-160.45282516,0.00024899,2]
[393041753,1762241437595,-151.0,0.000249,7]
[393041754,1762241437605,-153.998241,0.000249,7]
[393041755,1762241437615,-151.0,0.000249,7]
[393041757,1762241437629,-163.88158,0.000249,7]
[393041759,1762241437640,-165.243985,0.000249,7]
[393041760,1762241437650,-165.243985,0.000249,7]
[393041761,1762241437659,-165.243985,0.000249,7]
[393041762,1762241437668,-165.243985,0.000249,7]
[393041763,1762241437677,-154.327175,0.000249,7]
[393041764,1762241437689,-244.721064,0.000249,7]
[393041765,1762241437700,-151.0,0.000249,7]
[393041766,1762241437709,-189.324374,0.000249,2]
[393041767,1762241437718,-189.324374,0.000249,2]